bitfinex/quotes_BTCUSD_20250922
["timestamp","ask_amount","ask_price","bid_price","bid_amount"]
[1758517600040,1.91098801,114620.0,114610.0,0.03823]
[1758517600686,1.63806801,114620.0,114610.0,0.03823]
[1758517600901,1.91098801,114620.0,114610.0,0.03823]
[1758517601839,1.91098801,114620.0,114610.0,0.03303]
[1758517601840,1.67417013,114620.0,114610.0,0.03303]
[1758517602054,1.64012801,114620.0,114610.0,0.0102]
[1758517602270,1.67417013,114620.0,114610.0,0.0102]
[1758517602483,1.93777801,114620.0,114610.0,0.01234]
[1758517603102,1.66485801,114620.0,114610.0,0.01234]
[1758517603332,1.91304801,114620.0,114610.0,0.01555]
[1758517603545,1.93777801,114620.0,114610.0,0.01555]
[1758517604172,1.93777801,114620.0,114610.0,0.0102]
[1758517604366,1.93777801,114620.0,114610.0,0.01234]
[1758517604637,1.67211013,114620.0,114610.0,0.01555]
[1758517604863,1.93777801,114620.0,114610.0,0.03838]
[1758517605093,1.93777801,114620.0,114610.0,0.03517]
[1758517605293,1.93777801,114620.0,114610.0,0.03838]
[1758517605654,1.66485801,114620.0,114610.0,0.03838]
[1758517605868,1.93777801,114620.0,114610.0,0.03838]
[1758517606747,2.20132161,114620.0,114610.0,0.03838]
[1758517609000,1.92840161,114620.0,114610.0,0.03838]
[1758517609247,2.20132161,114620.0,114610.0,0.03838]
[1758517609474,1.91095587,114620.0,114610.0,0.01555]
[1758517609699,0.81897083,114620.0,114610.0,0.03838]
[1758517609922,0.77820847,114620.0,114610.0,0.21288484]
[1758517610143,0.95269808,114620.0,114610.0,0.21288484]
[1758517610365,0.77820847,114620.0,114610.0,0.21288484]
[1758517610616,0.77208414,114620.0,114610.0,0.21288484]
[1758517610832,0.77108414,114620.0,114610.0,0.21288484]
[1758517611260,0.77108414,114620.0,114610.0,0.25426883]
[1758517611486,0.77108414,114620.0,114610.0,0.25726883]
[1758517611915,0.77108414,114620.0,114610.0,0.21588484]
[1758517612311,0.77108414,114620.0,114610.0,0.21688484]
[1758517613199,0.7448,114620.0,114610.0,0.21688484]
[1758517618773,0.47192,114620.0,114610.0,0.21688484]
[1758517619016,0.74476,114620.0,114610.0,0.21688484]
[1758517623501,0.77099698,114620.0,114610.0,0.21688484]
[1758517624809,0.94548659,114620.0,114610.0,0.21688484]
[1758517625034,0.94548659,114620.0,114610.0,0.04238]
[1758517625235,0.96893659,114620.0,114610.0,0.04238]
[1758517626572,0.97102659,114620.0,114610.0,0.03917]
[1758517626798,1.80059807,114620.0,114610.0,0.0142]
[1758517627250,1.54312943,114620.0,114610.0,0.0142]
[1758517630000,1.27955369,114620.0,114610.0,0.0142]
[1758517630208,1.27713369,114620.0,114610.0,0.0142]
[1758517630424,1.27713369,114620.0,114610.0,0.01624]
[1758517632087,1.00429369,114620.0,114610.0,0.01624]
[1758517632293,1.27713369,114620.0,114610.0,0.01624]
[1758517633564,0.97713369,114620.0,114610.0,0.01624]
[1758517634187,0.97713369,114620.0,114610.0,0.04429]
[1758517634593,0.97713369,114620.0,114610.0,0.01624]
[1758517636866,0.70429369,114620.0,114610.0,0.01624]
[1758517637137,0.97713369,114620.0,114610.0,0.01624]
[1758517640435,0.97713369,114620.0,114610.0,0.0142]
[1758517641282,0.97713369,114620.0,114610.0,0.01634]
[1758517642181,0.70429369,114620.0,114610.0,0.01634]
[1758517642390,0.97713369,114620.0,114610.0,0.04439]
[1758517642789,0.97713369,114620.0,114610.0,0.04131]
[1758517643204,0.97713369,114620.0,114610.0,0.01634]
[1758517644035,0.97713369,114620.0,114610.0,0.0142]
[1758517646738,0.70429369,114620.0,114610.0,0.0142]
[1758517646969,0.97709369,114620.0,114610.0,0.0142]
[1758517648304,0.97951369,114620.0,114610.0,0.0142]
[1758517648525,1.6283591,114620.0,114610.0,0.0142]
[1758517651112,1.36478336,114620.0,114610.0,0.0142]
[1758517651260,1.6283591,114620.0,114610.0,0.0142]
[1758517654522,1.36478336,114620.0,114610.0,0.0142]
[1758517654727,1.6283591,114620.0,114610.0,0.0142]
[1758517654982,1.89193484,114620.0,114610.0,0.0142]
[1758517655187,2.29720496,114620.0,114610.0,0.0142]
[1758517656038,2.29720496,114620.0,114610.0,0.0132]
[1758517656496,1.77005348,114620.0,114610.0,0.0102]
[1758517656708,2.29720496,114620.0,114610.0,0.0102]
[1758517657114,1.77005348,114620.0,114610.0,0.0102]
[1758517657534,2.29720496,114620.0,114610.0,0.0102]
[1758517657881,2.29820496,114620.0,114610.0,0.0102]
[1758517660260,2.02540496,114620.0,114610.0,0.0102]
[1758517660461,2.29848496,114620.0,114610.0,0.0102]
[1758517661955,2.29844496,114620.0,114610.0,0.0102]
[1758517662161,2.02540496,114620.0,114610.0,0.0102]
[1758517662384,2.29852496,114620.0,114610.0,0.0102]
[1758517664279,2.03494922,114620.0,114610.0,0.0102]
[1758517664493,2.29852496,114620.0,114610.0,0.0102]
[1758517664702,2.29844496,114620.0,114610.0,0.0102]
[1758517665620,2.02540496,114620.0,114610.0,0.0102]
[1758517665832,2.29844496,114620.0,114610.0,0.0102]
[1758517666271,1.77129348,114620.0,114610.0,0.0102]
[1758517666478,2.29844496,114620.0,114610.0,0.0102]
[1758517668596,2.0348641,114620.0,114610.0,0.0102]
[1758517669090,2.0348241,114620.0,114610.0,0.0102]
[1758517670174,1.49825348,114620.0,114610.0,0.0102]
[1758517670387,2.0324041,114620.0,114610.0,0.0102]
[1758517670602,2.0348241,114620.0,114610.0,0.0102]
[1758517673656,2.0324041,114620.0,114610.0,0.0102]
[1758517673900,1.76883348,114620.0,114610.0,0.0102]
[1758517674110,2.0324041,114620.0,114610.0,0.0102]
[1758517674329,1.7594041,114620.0,114610.0,0.0102]
[1758517674535,2.0323641,114620.0,114610.0,0.0102]
[1758517674947,1.7594041,114620.0,114610.0,0.0102]
[1758517675165,1.76879348,114620.0,114610.0,0.01233]
[1758517675371,2.0323641,114620.0,114610.0,0.01233]
[1758517675588,2.0323641,114620.0,114610.0,0.0102]
[1758517675796,1.7594041,114620.0,114610.0,0.01233]
[1758517676000,1.94709443,114620.0,114610.0,0.01233]
[1758517677025,1.65800428,114620.0,114610.0,0.01533]
[1758517677229,1.9215749,114620.0,114610.0,0.03892]
[1758517677438,1.65800428,114620.0,114610.0,0.03892]
[1758517679090,1.65812428,114620.0,114610.0,0.03892]
[1758517680122,1.68101428,114620.0,114610.0,0.03892]
[1758517680535,1.9445849,114620.0,114610.0,0.03892]
[1758517680750,1.9465649,114620.0,114610.0,0.03892]
[1758517680938,1.9465649,114620.0,114610.0,0.01233]
[1758517681576,1.9445849,114620.0,114610.0,0.01533]
[1758517681775,1.68299428,114620.0,114610.0,0.01233]
[1758517681977,1.76628395,114620.0,114610.0,0.01516]
[1758517682198,2.02985457,114620.0,114610.0,0.03875]
[1758517683241,1.31977416,114620.0,114610.0,0.01516]
[1758517683447,0.67977416,114620.0,114610.0,0.03875]
[1758517683666,0.47904757,114620.0,114610.0,0.21325484]
[1758517683874,0.92673718,114620.0,114610.0,0.21325484]
[1758517684299,0.92573718,114620.0,114610.0,0.21325484]
[1758517684527,0.74512,114620.0,114610.0,0.21325484]
[1758517684736,0.74512,114620.0,114610.0,0.21425484]
[1758517684737,0.47192,114620.0,114610.0,0.21425484]
[1758517684944,0.47192,114620.0,114610.0,0.28012222]
[1758517685123,0.74516,114620.0,114610.0,0.28012222]
[1758517685462,0.74516,114620.0,114610.0,0.28312222]
[1758517685906,0.74516,114620.0,114610.0,0.21725484]
[1758517686551,0.91964961,114620.0,114610.0,0.04275]
[1758517688755,0.91964961,114620.0,114610.0,0.21725484]
[1758517689642,1.51061023,114620.0,114610.0,0.0142]
[1758517690046,1.5167343,114620.0,114610.0,0.0142]
[1758517690278,1.54297428,114620.0,114610.0,0.0142]
[1758517690800,1.62824395,114620.0,114610.0,0.0142]
[1758517691208,1.36215333,114620.0,114610.0,0.0142]
[1758517691419,1.00364366,114620.0,114610.0,0.01625]
[1758517691622,0.70166366,114620.0,114610.0,0.0195]
[1758517691825,0.95217366,114620.0,114610.0,0.04369]
[1758517692256,0.97564366,114620.0,114610.0,0.04369]
[1758517692714,0.97763366,114620.0,114610.0,0.04044]
[1758517693515,1.27763366,114620.0,114610.0,0.0142]
[1758517693710,1.36290333,114620.0,114610.0,0.0142]
[1758517697886,1.27775366,114620.0,114610.0,0.0142]
[1758517698135,1.27775366,114620.0,114610.0,0.01625]
[1758517698311,1.27775366,114620.0,114610.0,0.0142]
[1758517701989,1.54384428,114620.0,114610.0,0.0142]
[1758517703300,1.54384428,114620.0,114610.0,0.0132]
[1758517703518,1.54484428,114620.0,114610.0,0.0132]
[1758517703734,1.63011395,114620.0,114610.0,0.0102]
[1758517704593,2.03538407,114620.0,114610.0,0.0102]
[1758517704799,2.03562407,114620.0,114610.0,0.0102]
[1758517706971,1.78710459,114620.0,114610.0,0.0102]
[1758517707205,2.06162459,114620.0,114610.0,0.0102]
[1758517708078,1.78710459,114620.0,114610.0,0.0102]
[1758517708295,2.03638407,114620.0,114610.0,0.0102]
[1758517710297,2.03634407,114620.0,114610.0,0.0102]
[1758517711182,2.05002621,114620.0,114610.0,0.0102]
[1758517713763,1.77554621,114620.0,114610.0,0.0102]
[1758517714359,1.78637559,114620.0,114610.0,0.0102]
[1758517714553,2.04994621,114620.0,114610.0,0.0102]
[1758517715526,1.77554621,114620.0,114610.0,0.0102]
[1758517716144,2.04986621,114620.0,114610.0,0.0102]
[1758517717443,1.77554621,114620.0,114610.0,0.0102]
[1758517717675,2.04986621,114620.0,114610.0,0.0102]
[1758517718515,2.06620061,114620.0,114610.0,0.0102]
[1758517718934,2.06620068,114620.0,114610.0,0.0102]
[1758517720033,1.79188068,114620.0,114610.0,0.0102]
[1758517720244,1.80255006,114620.0,114610.0,0.0102]
[1758517720683,2.06628068,114620.0,114610.0,0.0102]
[1758517721579,1.79188068,114620.0,114610.0,0.0102]
[1758517721813,2.06628068,114620.0,114610.0,0.0102]
[1758517726008,1.52579006,114620.0,114610.0,0.0102]
[1758517726208,2.06368068,114620.0,114610.0,0.0102]
[1758517728437,2.06620068,114620.0,114610.0,0.0102]
[1758517730060,2.06368068,114620.0,114610.0,0.0102]
[1758517730515,2.07185269,114620.0,114610.0,0.0102]
[1758517730766,2.33550529,114620.0,114610.0,0.0102]
[1758517732829,2.33546529,114620.0,114610.0,0.0102]
[1758517734686,2.33542529,114620.0,114610.0,0.0102]
[1758517735106,2.33794529,114620.0,114610.0,0.0102]
[1758517735520,2.6015569,114620.0,114610.0,0.0102]
[1758517736971,2.5990369,114620.0,114610.0,0.0102]
[1758517737182,2.6015569,114620.0,114610.0,0.0102]
[1758517739769,2.6013969,114620.0,114610.0,0.0102]
[1758517740386,2.6013569,114620.0,114610.0,0.0102]
[1758517741026,2.3273169,114620.0,114610.0,0.0102]
[1758517741212,2.6013569,114620.0,114610.0,0.0102]
[1758517742747,2.6013169,114620.0,114610.0,0.0102]
[1758517743413,2.5987569,114620.0,114610.0,0.01217]
[1758517743618,2.33514529,114620.0,114610.0,0.01217]
[1758517743836,2.33514529,114620.0,114610.0,0.0102]
[1758517745512,1.80792207,114620.0,114610.0,0.0102]
[1758517745716,2.5987569,114620.0,114610.0,0.0102]
[1758517747988,2.3247969,114620.0,114610.0,0.0102]
[1758517748166,2.5990369,114620.0,114610.0,0.0102]
[1758517749184,2.6015569,114620.0,114610.0,0.0102]
[1758517750260,2.60156513,114620.0,114610.0,0.0102]
[1758517750409,2.62685701,114620.0,114610.0,0.0102]
[1758517751627,2.62681701,114620.0,114610.0,0.0102]
[1758517754731,2.3632054,114620.0,114610.0,0.0102]
[1758517756384,2.3630854,114620.0,114610.0,0.0102]
[1758517757385,2.36312055,114620.0,114610.0,0.0102]
[1758517758657,2.08904055,114620.0,114610.0,0.0102]
[1758517758862,1.83585733,114620.0,114610.0,0.0102]
[1758517759076,2.36308055,114620.0,114610.0,0.0102]
[1758517760201,2.36056055,114620.0,114610.0,0.0102]
[1758517761713,1.83333733,114620.0,114610.0,0.0102]
[1758517761946,2.36056055,114620.0,114610.0,0.0102]
[1758517762155,2.36308055,114620.0,114610.0,0.0102]
[1758517763286,2.62669216,114620.0,114610.0,0.0102]
[1758517763716,2.61301002,114620.0,114610.0,0.0102]
[1758517764773,2.34939841,114620.0,114610.0,0.0102]
[1758517765918,2.34687841,114620.0,114610.0,0.0102]
[1758517766177,2.32158653,114620.0,114610.0,0.0102]
[1758517766404,2.32410653,114620.0,114610.0,0.0102]
[1758517766630,2.58519814,114620.0,114610.0,0.0102]
[1758517767105,2.58503814,114620.0,114610.0,0.0102]
[1758517767337,2.04754653,114620.0,114610.0,0.0102]
[1758517767574,2.32142653,114620.0,114610.0,0.0102]
[1758517768012,2.32146653,114620.0,114610.0,0.01231]
[1758517768714,2.04754653,114620.0,114610.0,0.03896]
[1758517769119,2.32142653,114620.0,114610.0,0.03896]
[1758517769335,2.29596653,114620.0,114610.0,0.03896]
[1758517769741,2.31853653,114620.0,114610.0,0.03896]
[1758517769955,2.29592653,114620.0,114610.0,0.03896]
[1758517770377,2.29592653,114620.0,114610.0,0.0153]
[1758517770589,2.29592653,114620.0,114610.0,0.03896]
[1758517770812,2.02208653,114620.0,114610.0,0.0153]
[1758517770972,2.29600653,114620.0,114610.0,0.03896]
[1758517771400,2.02208653,114620.0,114610.0,0.0153]
[1758517771604,2.02208653,114620.0,114610.0,0.03896]
[1758517771788,2.29600653,114620.0,114610.0,0.03896]
[1758517771986,2.02208653,114620.0,114610.0,0.03896]
[1758517773198,2.29600653,114620.0,114610.0,0.03896]
[1758517773454,2.29596653,114620.0,114610.0,0.03896]
[1758517773636,2.02208653,114620.0,114610.0,0.03896]
[1758517774094,2.29794653,114620.0,114610.0,0.03896]
[1758517774317,2.32051653,114620.0,114610.0,0.03896]
[1758517774655,2.32051653,114620.0,114610.0,0.01231]
[1758517775311,2.32051653,114620.0,114610.0,0.0102]
[1758517776237,2.33419879,114620.0,114610.0,0.0102]
[1758517777022,2.33419608,114620.0,114610.0,0.0102]
[1758517777807,2.33419608,114620.0,114610.0,0.01231]
[1758517778338,2.33419608,114620.0,114610.0,0.0102]
[1758517778513,2.33671608,114620.0,114610.0,0.0102]
[1758517778695,2.33419608,114620.0,114610.0,0.0102]
[1758517781094,2.33419127,114620.0,114610.0,0.0102]
[1758517783066,2.33671127,114620.0,114610.0,0.0102]
[1758517783267,2.33419127,114620.0,114610.0,0.0102]
[1758517783784,2.32050901,114620.0,114610.0,0.0102]
[1758517784087,2.33671139,114620.0,114610.0,0.0102]
[1758517785061,2.33671026,114620.0,114610.0,0.0102]
[1758517785854,2.33419026,114620.0,114610.0,0.0102]
[1758517786254,2.33671026,114620.0,114610.0,0.0102]
[1758517786485,2.33419026,114620.0,114610.0,0.0102]
[1758517786908,2.33671026,114620.0,114610.0,0.0102]
[1758517790384,2.07309865,114620.0,114610.0,0.0102]
[1758517790594,2.33671026,114620.0,114610.0,0.0102]
[1758517791238,2.33419026,114620.0,114610.0,0.0102]
[1758517792243,2.33671026,114620.0,114610.0,0.0102]
[1758517792675,2.07311006,114620.0,114610.0,0.0102]
[1758517793007,2.07059006,114620.0,114610.0,0.0102]
[1758517793209,2.07311006,114620.0,114610.0,0.0102]
[1758517794084,2.07059006,114620.0,114610.0,0.0102]
[1758517795773,2.07311006,114620.0,114610.0,0.0102]
[1758517795982,2.07059006,114620.0,114610.0,0.0102]
[1758517796941,2.07047006,114620.0,114610.0,0.0102]
[1758517798000,2.07039006,114620.0,114610.0,0.01228]
[1758517798411,2.07039006,114620.0,114610.0,0.0102]
[1758517799104,2.06845006,114620.0,114610.0,0.01228]
[1758517799321,2.06845006,114620.0,114610.0,0.03941]
[1758517799641,2.07044006,114620.0,114610.0,0.03941]
[1758517800085,2.07044006,114620.0,114610.0,0.01228]
[1758517801086,1.80681704,114620.0,114610.0,0.01228]
[1758517801294,1.79672006,114620.0,114610.0,0.01228]
[1758517801515,1.80673704,114620.0,114610.0,0.01228]
[1758517801784,2.07036006,114620.0,114610.0,0.01228]
[1758517805040,1.80673704,114620.0,114610.0,0.01228]
[1758517805220,2.07036006,114620.0,114610.0,0.01228]
[1758517806272,2.07288006,114620.0,114610.0,0.0102]
[1758517806837,2.07036006,114620.0,114610.0,0.0102]
[1758517807464,1.80673704,114620.0,114610.0,0.0102]
[1758517807665,2.07036006,114620.0,114610.0,0.0102]
[1758517808067,2.07288006,114620.0,114610.0,0.0102]
[1758517810087,2.07036006,114620.0,114610.0,0.0102]
[1758517811335,2.07035813,114620.0,114610.0,0.0102]
[1758517812923,2.07035813,114620.0,114610.0,0.01233]
[1758517813773,1.79671813,114620.0,114610.0,0.01233]
[1758517813989,1.98289846,114620.0,114610.0,0.03996]
[1758517815053,1.70945846,114620.0,114610.0,0.03996]
[1758517815259,1.98293846,114620.0,114610.0,0.03996]
[1758517816713,1.70945846,114620.0,114610.0,0.03996]
[1758517816914,1.96048846,114620.0,114610.0,0.03996]
[1758517817699,2.04575813,114620.0,114610.0,0.03996]
[1758517819364,2.04575984,114620.0,114610.0,0.03996]
[1758517821188,2.06944984,114620.0,114610.0,0.03996]
[1758517822409,1.42326715,114620.0,114610.0,0.03996]
[1758517822650,1.96045017,114620.0,114610.0,0.03996]
[1758517826259,1.72051715,114620.0,114610.0,0.03996]
[1758517826471,1.98612017,114620.0,114610.0,0.01233]
[1758517826696,1.98612017,114620.0,114610.0,0.0102]
[1758517826873,2.07138984,114620.0,114610.0,0.0102]
[1758517827212,2.07138456,114620.0,114610.0,0.0102]
[1758517827605,2.07138334,114620.0,114610.0,0.0102]
[1758517827949,2.07390334,114620.0,114610.0,0.0102]
[1758517828160,2.07398334,114620.0,114610.0,0.0102]
[1758517828827,2.07146334,114620.0,114610.0,0.0102]
[1758517836374,1.79782361,114620.0,114610.0,0.0102]
[1758517836523,1.79782361,114620.0,114610.0,0.01235]
[1758517836707,2.06948361,114620.0,114610.0,0.01558]
[1758517836913,2.07147361,114620.0,114610.0,0.01558]
[1758517837126,2.07147361,114620.0,114610.0,0.01235]
[1758517837733,2.07147361,114620.0,114610.0,0.01558]
[1758517838432,2.07143361,114620.0,114610.0,0.03875]
[1758517838638,1.53222059,114620.0,114610.0,0.03875]
[1758517838807,1.71057394,114620.0,114610.0,0.03875]
[1758517839012,1.96048394,114620.0,114610.0,0.03875]
[1758517839338,1.42326092,114620.0,114610.0,0.01558]
[1758517839494,1.96048394,114620.0,114610.0,0.03875]
[1758517839712,1.94680156,114620.0,114610.0,0.03875]
[1758517840278,2.03207123,114620.0,114610.0,0.03875]
[1758517841592,1.94680156,114620.0,114610.0,0.03875]
[1758517843538,1.94676156,114620.0,114610.0,0.03875]
[1758517844306,1.97017156,114620.0,114610.0,0.03875]
[1758517848298,1.97215156,114620.0,114610.0,0.03875]
[1758517850378,1.69859156,114620.0,114610.0,0.03875]
[1758517850568,1.97207156,114620.0,114610.0,0.03875]
[1758517851145,2.05734123,114620.0,114610.0,0.03875]
[1758517852011,2.05734123,114620.0,114610.0,0.0102]
[1758517854673,2.58461598,114620.0,114610.0,0.0102]
[1758517857817,1.79371821,114620.0,114610.0,0.0102]
[1758517858022,2.58461598,114620.0,114610.0,0.0102]
[1758517861763,2.31113598,114620.0,114610.0,0.0102]
[1758517861897,2.58441598,114620.0,114610.0,0.0102]
[1758517864559,2.31113598,114620.0,114610.0,0.0102]
[1758517864775,2.58441598,114620.0,114610.0,0.0102]
[1758517865999,2.31113598,114620.0,114610.0,0.0102]
[1758517866198,2.58441598,114620.0,114610.0,0.0102]
[1758517866766,2.31113598,114620.0,114610.0,0.0102]
[1758517866910,2.58441598,114620.0,114610.0,0.0102]
[1758517868622,2.31113598,114620.0,114610.0,0.0102]
[1758517868820,2.58441598,114620.0,114610.0,0.0102]
[1758517869680,2.58441365,114620.0,114610.0,0.0102]
[1758517871909,2.58441173,114620.0,114610.0,0.0102]
[1758517876396,2.58441003,114620.0,114610.0,0.0102]
[1758517876626,1.79351226,114620.0,114610.0,0.01233]
[1758517876989,2.58441003,114620.0,114610.0,0.0102]
[1758517877801,2.58441042,114620.0,114610.0,0.0102]
[1758517881871,2.58441042,114620.0,114610.0,0.01233]
[1758517882849,2.31113042,114620.0,114610.0,0.01233]
[1758517883048,2.58441042,114620.0,114610.0,0.01233]
[1758517885692,2.58441288,114620.0,114610.0,0.01233]
[1758517887115,2.58441288,114620.0,114610.0,0.0102]
[1758517888795,2.61222476,114620.0,114610.0,0.0102]
[1758517889014,2.62590696,114620.0,114610.0,0.0102]
[1758517891423,2.60061508,114620.0,114610.0,0.0102]
[1758517892380,2.60060508,114620.0,114610.0,0.0102]
[1758517893249,2.60060644,114620.0,114610.0,0.0102]
[1758517893519,2.32732644,114620.0,114610.0,0.0102]
[1758517893761,2.60056644,114620.0,114610.0,0.0102]
[1758517897987,2.32732644,114620.0,114610.0,0.0102]
[1758517898197,2.60056644,114620.0,114610.0,0.0102]
[1758517899137,2.32732644,114620.0,114610.0,0.0102]
[1758517899386,2.60056644,114620.0,114610.0,0.0102]
[1758517899759,2.32732644,114620.0,114610.0,0.0102]
[1758517900062,2.32479644,114620.0,114610.0,0.0102]
[1758517900259,2.59803644,114620.0,114610.0,0.01215]
[1758517901602,2.59803638,114620.0,114610.0,0.01215]
[1758517904597,2.32479638,114620.0,114610.0,0.01215]
[1758517904829,2.59803638,114620.0,114610.0,0.01215]
[1758517905672,2.32479638,114620.0,114610.0,0.01508]
[1758517905887,2.32479638,114620.0,114610.0,0.0387]
[1758517906096,2.59803638,114620.0,114610.0,0.0387]
[1758517909427,2.59803638,114620.0,114610.0,0.03382]
[1758517909748,2.59803638,114620.0,114610.0,0.01215]
[1758517911875,2.32479638,114620.0,114610.0,0.01215]
[1758517912009,2.59803638,114620.0,114610.0,0.0387]
[1758517912214,2.51276671,114620.0,114610.0,0.0387]
[1758517912391,2.48739671,114620.0,114610.0,0.01508]
[1758517912599,2.48739671,114620.0,114610.0,0.0387]
[1758517913403,2.51120671,114620.0,114610.0,0.0387]
[1758517913830,2.23796671,114620.0,114610.0,0.0387]
[1758517914030,2.51120671,114620.0,114610.0,0.0387]
[1758517914251,2.59843638,114620.0,114610.0,0.0387]
[1758517915744,2.59843638,114620.0,114610.0,0.03577]
[1758517915965,2.59843638,114620.0,114610.0,0.01215]
[1758517916806,2.07115337,114620.0,114610.0,0.01215]
[1758517917379,2.07115158,114620.0,114610.0,0.01215]
[1758517918007,2.04662613,114620.0,114610.0,0.01215]
[1758517918230,1.77338613,114620.0,114610.0,0.01215]
[1758517918446,2.04662613,114620.0,114610.0,0.01215]
[1758517919351,2.07114415,114620.0,114610.0,0.01215]
[1758517919780,1.79790415,114620.0,114610.0,0.01215]
[1758517919990,1.66234646,114620.0,114610.0,0.03994]
[1758517920204,1.93558646,114620.0,114610.0,0.03994]
[1758517920436,1.93558646,114620.0,114610.0,0.21444484]
[1758517920437,0.50528977,114620.0,114610.0,0.21444484]
[1758517920637,1.21663414,114620.0,114610.0,0.21444484]
[1758517920848,1.55663414,114620.0,114610.0,0.21444484]
[1758517924064,1.55662914,114620.0,114610.0,0.03994]
[1758517924493,1.29301438,114620.0,114610.0,0.03994]
[1758517924733,1.55662914,114620.0,114610.0,0.03994]
[1758517926118,1.85662914,114620.0,114610.0,0.03994]
[1758517926317,1.94189881,114620.0,114610.0,0.03994]
[1758517926953,1.96650881,114620.0,114610.0,0.03994]
[1758517927394,1.88123914,114620.0,114610.0,0.03994]
[1758517927599,1.85662914,114620.0,114610.0,0.03994]
[1758517929053,1.88123914,114620.0,114610.0,0.03994]
[1758517930811,1.85662914,114620.0,114610.0,0.03994]
[1758517932723,1.85658914,114620.0,114610.0,0.03994]
[1758517933961,1.88133914,114620.0,114610.0,0.03994]
[1758517935899,1.87935914,114620.0,114610.0,0.03994]
[1758517936210,1.85658914,114620.0,114610.0,0.03994]
[1758517936571,1.88133914,114620.0,114610.0,0.03994]
[1758517936782,1.96660881,114620.0,114610.0,0.03994]
[1758517938512,1.96462881,114620.0,114610.0,0.03994]
[1758517939132,1.87935914,114620.0,114610.0,0.03994]
[1758517942329,1.88134914,114620.0,114610.0,0.03994]
[1758517943190,1.61574438,114620.0,114610.0,0.03994]
[1758517943406,1.59297438,114620.0,114610.0,0.03994]
[1758517943612,1.85658914,114620.0,114610.0,0.03994]
[1758517945320,1.88133914,114620.0,114610.0,0.03676]
[1758517945770,1.96660881,114620.0,114610.0,0.01215]
[1758517946612,1.96660881,114620.0,114610.0,0.0102]
[1758517947824,1.96661012,114620.0,114610.0,0.0102]
[1758517951219,1.96757012,114620.0,114610.0,0.01537]
[1758517951400,1.88032045,114620.0,114610.0,0.03921]
[1758517951804,1.88231045,114620.0,114610.0,0.03921]
[1758517952932,1.88227045,114620.0,114610.0,0.03921]
[1758517953380,1.59385569,114620.0,114610.0,0.03921]
[1758517953558,1.55747045,114620.0,114610.0,0.03921]
[1758517953705,1.55767045,114620.0,114610.0,0.06060288]
[1758517954106,1.28339045,114620.0,114610.0,0.23510772]
[1758517954355,1.55767045,114620.0,114610.0,0.23510772]
[1758517954941,0.50528608,114620.0,114610.0,0.21371484]
[1758517955159,0.76890084,114620.0,114610.0,0.21371484]
[1758517955359,1.04314084,114620.0,114610.0,0.21371484]
[1758517956123,1.04314084,114620.0,114610.0,0.21471484]
[1758517956339,1.04214084,114620.0,114610.0,0.21471484]
[1758517956544,1.04214084,114620.0,114610.0,0.21571484]
[1758517959887,0.77840608,114620.0,114610.0,0.25564303]
[1758517960099,1.04202084,114620.0,114610.0,0.25564303]
[1758517960549,1.04202084,114620.0,114610.0,0.21571484]
[1758517962553,1.21651045,114620.0,114610.0,0.21571484]
[1758517963983,1.04202084,114620.0,114610.0,0.21571484]
[1758517964386,0.76790084,114620.0,114610.0,0.21571484]
[1758517964590,1.04198084,114620.0,114610.0,0.21571484]
[1758517965927,1.21643045,114620.0,114610.0,0.21571484]
[1758517966641,0.94239045,114620.0,114610.0,0.21571484]
[1758517966940,1.21639045,114620.0,114610.0,0.21571484]
[1758517967122,1.21635045,114620.0,114610.0,0.21571484]
[1758517968497,1.21631045,114620.0,114610.0,0.21571484]
[1758517968917,1.24122045,114620.0,114610.0,0.21571484]
[1758517969114,1.06673084,114620.0,114610.0,0.21571484]
[1758517969313,0.76790084,114620.0,114610.0,0.21571484]
[1758517969518,1.04182084,114620.0,114610.0,0.21571484]
[1758517970149,1.03569474,114620.0,114610.0,0.21571484]
[1758517970948,1.03565474,114620.0,114610.0,0.21571484]
[1758517971172,1.03565474,114620.0,114610.0,0.2547582]
[1758517971991,0.77203998,114620.0,114610.0,0.2547582]
[1758517972196,0.77199998,114620.0,114610.0,0.2547582]
[1758517972420,0.77199998,114620.0,114610.0,0.34002787]
[1758517973019,0.74576,114620.0,114610.0,0.34002787]
[1758517973410,0.77199576,114620.0,114610.0,0.34002787]
[1758517978706,1.00921561,114620.0,114610.0,0.34002787]
[1758517979546,0.74576,114620.0,114610.0,0.34002787]
[1758517980046,0.74576,114620.0,114610.0,0.33002787]
[1758517981226,0.47192,114620.0,114610.0,0.36017977]
[1758517981444,0.36804,114620.0,114610.0,0.36017977]
[1758517982510,0.36804,114620.0,114610.0,0.35917977]
[1758517982852,0.36804,114620.0,114610.0,0.35817977]
[1758517983055,0.36804,114620.0,114610.0,0.36517977]
[1758517983464,0.36804,114620.0,114610.0,0.36917977]
[1758517990567,0.3682,114620.0,114610.0,0.36917977]
[1758517996151,0.3682,114620.0,114610.0,0.63887977]
[1758518008930,0.36812,114620.0,114610.0,0.63887977]
[1758518014660,0.27376,114620.0,114610.0,0.63887977]
[1758518018727,0.3135202,114630.0,114620.0,0.20464151]
[1758518018928,0.5871202,114630.0,114620.0,0.37124812]
[1758518019156,0.5891002,114630.0,114620.0,0.37124812]
[1758518019760,0.5891002,114630.0,114620.0,0.64094812]
[1758518020919,0.5891002,114630.0,114620.0,0.64294812]
[1758518021072,0.5891002,114630.0,114620.0,0.64594812]
[1758518021683,0.05204459,114630.0,114620.0,0.64594812]
[1758518021886,0.5890202,114630.0,114620.0,0.64594812]
[1758518022688,0.5890202,114630.0,114620.0,0.64808812]
[1758518024451,0.32556459,114630.0,114620.0,0.64808812]
[1758518024651,0.5890202,114630.0,114620.0,0.65668583]
[1758518025055,0.5890202,114630.0,114620.0,0.64808812]
[1758518025859,0.3155002,114630.0,114620.0,0.64808812]
[1758518026060,0.5889402,114630.0,114620.0,0.64808812]
[1758518026265,0.02631459,114630.0,114620.0,0.65128812]
[1758518026465,0.29971459,114630.0,114620.0,0.67558812]
[1758518026890,0.2734819,114630.0,114620.0,0.67558812]
[1758518027237,8.19e-05,114630.0,114620.0,0.67558812]
[1758518027437,0.2735219,114630.0,114620.0,0.67558812]
[1758518028337,0.2735219,114630.0,114620.0,0.68433639]
[1758518028539,8.19e-05,114630.0,114620.0,0.68433639]
[1758518028769,0.2734819,114630.0,114620.0,0.68433639]
[1758518029374,8.19e-05,114630.0,114620.0,0.68433639]